bitfinex/quotes_SOLUSD_20240912
["timestamp","ask_amount","ask_price","bid_price","bid_amount"]
[1726153716724,23.776884,135.29,135.24,22.93323601]
[1726153717646,0.2606398,135.32,135.26,22.93323601]
[1726153725942,0.25098,135.31,135.26,22.93323601]
[1726153726726,24.0375238,135.32,135.29,22.93323601]
[1726153726928,0.2606398,135.32,135.29,22.93323601]
[1726153727149,0.2606398,135.32,135.31,22.93323601]
[1726153728248,0.2606398,135.32,135.29,22.93323601]
[1726153729769,0.2606398,135.32,135.31,42.93323601]
[1726153730825,0.2606398,135.32,135.27,15.3102]
[1726153731027,0.2606398,135.32,135.28,42.93323601]
[1726153732128,0.2606398,135.32,135.28,22.93323601]
[1726153733522,0.2606398,135.32,135.3,22.93323601]
[1726153742371,15.9744398,135.36,135.3,22.93323601]
[1726153742566,15.9744398,135.36,135.28,6.2155]
[1726153742567,15.9744398,135.36,135.32,22.93323601]
[1726153743978,23.776884,135.35,135.32,22.93323601]
[1726153745459,23.776884,135.35,135.31,20.0]
[1726153746051,0.25098,135.34,135.26,22.93323601]
[1726153746252,23.776884,135.33,135.26,22.93323601]
[1726153746454,0.25098,135.32,135.26,22.93323601]
[1726153747461,0.25098,135.32,135.27,20.0]
[1726153749482,23.776884,135.33,135.28,22.93323601]
[1726153749662,23.776884,135.33,135.3,22.93323601]
[1726153750177,6.2479,135.34,135.3,22.93323601]
[1726153750861,15.9744398,135.36,135.32,22.93323601]
[1726153751066,0.2606398,135.36,135.34,22.93323601]
[1726153757178,15.9933398,135.4,135.34,22.93323601]
[1726153757179,23.776884,135.39,135.34,22.93323601]
[1726153757391,23.776884,135.39,135.36,22.93323601]
[1726153758683,24.0023691,135.4,135.36,22.93323601]
[1726153760283,0.2254851,135.4,135.36,22.93323601]
[1726153761083,23.776884,135.39,135.34,22.93323601]
[1726153761380,0.25098,135.38,135.34,20.0]
[1726153761582,23.902374,135.38,135.34,20.0]
[1726153761760,23.776884,135.36,135.31,22.93323601]
[1726153761963,23.776884,135.34,135.31,22.93323601]
[1726153762680,23.776884,135.32,135.29,22.93323601]
[1726153762979,23.776884,135.32,135.27,22.93323601]
[1726153763884,23.776884,135.32,135.28,20.0]
[1726153764977,23.776884,135.32,135.27,20.0]
[1726153765179,23.776884,135.32,135.28,22.93323601]
[1726153765993,23.776884,135.32,135.27,20.0]
[1726153766177,0.25098,135.31,135.27,20.0]
[1726153766698,23.776884,135.29,135.25,20.2961799]
[1726153767200,23.776884,135.29,135.25,0.2961799]
[1726153767387,24.79494492,135.29,135.25,0.2961799]
[1726153767591,0.25098,135.28,135.25,0.2961799]
[1726153768399,23.776884,135.26,135.25,0.2961799]
[1726153770587,0.12549,135.28,135.25,0.2961799]
[1726153770896,24.027864,135.29,135.25,0.2961799]
[1726153775091,24.027864,135.29,135.25,23.22941591]
[1726153779194,23.902374,135.29,135.25,23.22941591]
[1726153779511,23.776884,135.29,135.25,23.22941591]
[1726153780494,15.5648,135.33,135.28,20.0]
[1726153780685,6.3692,135.34,135.29,22.93323601]
[1726153780883,21.8937,135.37,135.29,22.93323601]
[1726153781411,1.01806092,135.36,135.29,22.93323601]
[1726153781615,1.01806092,135.35,135.29,22.93323601]
[1726153781991,23.902374,135.34,135.29,22.93323601]
[1726153782486,23.776884,135.32,135.29,22.93323601]
[1726153783888,23.776884,135.33,135.27,42.93323601]
[1726153784099,0.25098,135.32,135.27,42.93323601]
[1726153784293,23.776884,135.33,135.29,22.93323601]
[1726153784503,23.776884,135.33,135.3,20.0]
[1726153785708,0.25098,135.32,135.27,22.93323601]
[1726153785917,23.776884,135.31,135.25,0.2961799]
[1726153786100,1.26904092,135.3,135.25,0.2961799]
[1726153786293,24.79494492,135.29,135.25,0.2961799]
[1726153786616,0.25098,135.28,135.25,0.2961799]
[1726153793302,23.776884,135.27,135.25,0.2961799]
[1726153801125,0.25098,135.28,135.25,0.2961799]
[1726153801126,24.027864,135.26,135.25,0.2961799]
[1726153803820,25.04592492,135.26,135.25,0.2961799]
[1726153804930,24.027864,135.26,135.25,0.2961799]
[1726153805340,25.04592492,135.26,135.25,0.2961799]
[1726153805548,24.027864,135.26,135.25,0.2961799]
[1726153806040,25.04592492,135.26,135.25,0.2961799]
[1726153806516,23.776884,135.25,135.21,0.2608325]
[1726153806716,0.25098,135.24,135.21,0.2608325]
[1726153808116,1.26904092,135.24,135.21,0.2608325]
[1726153808647,23.776884,135.23,135.21,0.2608325]
[1726153808945,0.25098,135.22,135.21,0.2608325]
[1726153809739,25.04592492,135.22,135.21,0.2608325]
[1726153810235,24.027864,135.22,135.21,0.2608325]
[1726153811441,23.902374,135.22,135.21,0.2608325]
[1726153811646,23.776884,135.22,135.21,0.2608325]
[1726153813462,24.027864,135.22,135.21,0.2608325]
[1726153813737,39.501864,135.22,135.21,0.2608325]
[1726153813936,40.51992492,135.22,135.21,0.2608325]
[1726153814646,46.74092492,135.22,135.21,0.2608325]
[1726153815021,45.722864,135.22,135.21,0.2608325]
[1726153816246,23.776884,135.21,135.17,0.2608325]
[1726153816440,0.12549,135.2,135.17,0.2608325]
[1726153816739,1.14355092,135.2,135.17,0.2608325]
[1726153816914,0.12549,135.19,135.17,0.2608325]
[1726153817119,0.12549,135.2,135.17,0.2608325]
[1726153819722,0.12549,135.2,135.17,0.1811505]
[1726153825242,23.776884,135.19,135.17,0.1811505]
[1726153825434,25.04592492,135.18,135.17,0.1811505]
[1726153825931,24.027864,135.18,135.17,0.1811505]
[1726153826326,23.902374,135.18,135.17,0.1811505]
[1726153826535,21.695,135.22,135.17,0.1811505]
[1726153826759,0.12549,135.21,135.17,0.1811505]
[1726153827852,23.902374,135.21,135.17,0.1811505]
[1726153828048,0.12549,135.2,135.17,0.1811505]
[1726153829755,15.474,135.22,135.18,14.74650899]
[1726153830941,0.12549,135.21,135.18,14.74650899]
[1726153831459,23.902374,135.21,135.18,14.74650899]
[1726153832252,0.12549,135.2,135.18,14.74650899]
[1726153835034,0.12549,135.2,135.18,14.92765949]
[1726153836256,23.902374,135.21,135.18,14.92765949]
[1726153836437,23.902374,135.21,135.2,14.74650899]
[1726153838059,24.027864,135.21,135.18,0.1811505]
[1726153838356,23.776884,135.19,135.18,0.1811505]
[1726153838563,24.027864,135.19,135.18,0.1811505]
[1726153839144,23.776884,135.19,135.18,0.1811505]
[1726153839345,24.027864,135.19,135.18,0.1811505]
[1726153842351,72.6244,135.25,135.18,0.1811505]
[1726153842352,79.2791,135.25,135.18,0.1811505]
[1726153842546,1.01806092,135.24,135.18,0.1811505]
[1726153842762,1.01806092,135.23,135.18,0.1811505]
[1726153843456,23.776884,135.22,135.18,0.1811505]
[1726153843659,1.26904092,135.21,135.18,0.1811505]
[1726153843951,23.776884,135.19,135.18,0.1811505]
[1726153844154,24.027864,135.19,135.18,0.1811505]
[1726153845651,79.2787,135.25,135.18,0.1811505]
[1726153845972,22.6244,135.25,135.18,0.1811505]
[1726153846550,20.94403299,135.28,135.21,14.74650899]
[1726153846858,6.197524,135.28,135.21,14.74650899]
[1726153847172,28.417524,135.28,135.21,14.74650899]
[1726153847577,72.22,135.27,135.21,14.74650899]
[1726153847878,6.197524,135.28,135.21,14.74650899]
[1726153848090,0.073024,135.28,135.23,14.74650899]
[1726153848252,0.073024,135.28,135.21,24.49005207]
[1726153848664,0.073024,135.28,135.22,20.0]
[1726153848953,0.073024,135.28,135.23,23.01270031]
[1726153849153,0.073024,135.28,135.24,1.47661021]
[1726153849570,0.073024,135.28,135.23,24.48854618]
[1726153849775,0.073024,135.28,135.23,24.48757475]
[1726153850648,0.073024,135.28,135.24,1.47549648]
[1726153851680,0.198514,135.28,135.24,1.47549648]
[1726153852774,0.198514,135.28,135.24,21.47549648]
[1726153853077,0.073024,135.28,135.25,24.48743314]
[1726153853253,0.073024,135.28,135.27,23.01270031]
[1726153853452,0.073024,135.28,135.27,24.48721509]
[1726153853647,0.073024,135.28,135.27,23.01270031]
[1726153854296,0.073024,135.28,135.25,23.01270031]
[1726153854466,0.073024,135.28,135.23,23.01270031]
[1726153854673,0.073024,135.28,135.23,43.01270031]
[1726153854861,0.198514,135.28,135.23,43.01270031]
[1726153855088,0.12549,135.27,135.23,43.01270031]
[1726153857296,0.25098,135.27,135.23,43.01270031]
[1726153859176,0.12549,135.27,135.23,43.01270031]
[1726153861179,0.12549,135.27,135.23,20.0]
[1726153861180,0.25098,135.27,135.23,20.0]
[1726153861383,0.25098,135.27,135.23,23.01270031]
[1726153864710,0.25098,135.27,135.21,43.01270031]
[1726153864911,25.04592492,135.27,135.21,43.01270031]
[1726153865401,25.04592492,135.27,135.19,23.01270031]
[1726153865727,24.027864,135.27,135.19,23.01270031]
[1726153866010,24.027864,135.27,135.21,23.01270031]
[1726153866222,23.902374,135.27,135.23,23.01270031]
[1726153868210,23.776884,135.27,135.25,23.01270031]
[1726153868580,0.073024,135.28,135.25,23.01270031]
[1726153868783,0.073024,135.28,135.22,20.0]
[1726153868987,0.073024,135.28,135.22,43.01270031]
[1726153869396,1.01806092,135.27,135.22,43.01270031]
[1726153869600,0.073024,135.28,135.22,23.01270031]
[1726153870021,0.12549,135.26,135.22,23.01270031]
[1726153870212,0.12549,135.26,135.2,23.01270031]
[1726153870503,23.776884,135.25,135.2,23.01270031]
[1726153870706,0.25098,135.24,135.2,23.01270031]
[1726153870892,23.776884,135.23,135.2,23.01270031]
[1726153872799,23.776884,135.23,135.19,20.0]
[1726153873115,0.12549,135.22,135.19,20.0]
[1726153873323,23.776884,135.21,135.18,23.19385081]
[1726153874401,23.776884,135.21,135.18,0.1811505]
[1726153874611,23.776884,135.21,135.18,23.19385081]
[1726153875904,23.776884,135.19,135.18,0.1811505]
[1726153878196,21.8966,135.26,135.18,23.19385081]
[1726153878418,21.8966,135.26,135.2,23.01270031]
[1726153879117,15.8335,135.26,135.22,23.01270031]
[1726153880104,22.4799,135.29,135.22,23.01270031]
[1726153881204,0.198514,135.28,135.22,23.01270031]
[1726153881412,0.12549,135.27,135.22,23.01270031]
[1726153881728,0.25098,135.27,135.22,23.01270031]
[1726153882194,23.776884,135.26,135.22,23.01270031]
[1726153882399,0.25098,135.27,135.22,23.01270031]
[1726153885635,0.073024,135.28,135.24,23.01270031]
[1726153885807,0.073024,135.28,135.26,23.01270031]
[1726153896432,0.073024,135.28,135.24,23.01270031]
[1726153896736,0.198514,135.28,135.24,23.01270031]
[1726153896908,0.12549,135.27,135.24,23.01270031]
[1726153897108,0.25098,135.27,135.24,23.01270031]
[1726153897630,0.25098,135.27,135.23,20.0]
[1726153898037,0.12549,135.27,135.24,23.01270031]
[1726153898328,0.12549,135.27,135.26,14.72067123]
[1726153899238,0.073024,135.28,135.26,14.72067123]
[1726153899910,0.198514,135.28,135.26,14.72067123]
[1726153900110,0.12549,135.27,135.26,14.72067123]
[1726153901115,0.198514,135.28,135.26,14.72067123]
[1726153904736,0.12549,135.27,135.26,14.72067123]
[1726153907107,0.25098,135.27,135.26,14.72067123]
[1726153908342,0.073024,135.28,135.26,14.72067123]
[1726153909154,0.2541745,135.32,135.27,20.8906016]
[1726153909361,0.2541745,135.32,135.31,14.72067123]
[1726153911350,0.2541745,135.36,135.31,34.72067123]
[1726153911660,0.2541745,135.36,135.35,14.72067123]
[1726153913440,1.27223542,135.36,135.32,20.0]
[1726153913651,23.776884,135.35,135.28,6.4522]
[1726153913857,23.776884,135.33,135.29,14.72067123]
[1726153916154,23.776884,135.33,135.28,42.98872583]
[1726153916746,0.25098,135.32,135.28,42.98872583]
[1726153916968,0.25098,135.32,135.28,44.46593539]
[1726153917155,23.776884,135.33,135.28,44.46593539]
[1726153917469,23.776884,135.33,135.28,42.98872583]
[1726153920051,0.2541745,135.36,135.32,22.98872583]
[1726153921949,0.2541745,135.36,135.3,22.98872583]
[1726153922555,0.25098,135.35,135.31,20.0]
[1726153924470,0.25098,135.35,135.3,22.98872583]
[1726153924652,23.776884,135.34,135.3,22.98872583]
[1726153927671,0.2541745,135.36,135.32,22.98872583]
[1726153928578,0.2541745,135.36,135.31,20.0]
[1726153928749,0.2541745,135.36,135.29,22.98872583]
[1726153928968,0.25098,135.35,135.29,22.98872583]
[1726153929188,23.776884,135.34,135.29,22.98872583]
[1726153929492,0.25098,135.33,135.29,22.98872583]
[1726153930996,23.776884,135.34,135.31,22.98872583]
[1726153931671,0.2541745,135.36,135.31,22.98872583]
[1726153931871,0.2541745,135.36,135.32,20.0]
[1726153932485,0.2541745,135.36,135.33,22.98872583]
[1726153932990,0.2541745,135.36,135.34,20.0]
[1726153933189,0.2541745,135.36,135.35,22.98872583]
[1726153933996,0.2541745,135.36,135.35,42.98872583]
[1726153934504,0.2541745,135.41,135.36,20.0]
[1726153935505,24.0310585,135.41,135.37,22.98872583]
[1726153936074,0.2541745,135.41,135.38,21.41704864]
[1726153936272,0.2541745,135.41,135.39,22.98872583]
[1726153937303,0.2541745,135.41,135.38,20.0]
[1726153938088,0.2541745,135.41,135.39,22.98872583]
[1726153938476,0.2541745,135.41,135.4,20.0]
[1726153939821,0.2541745,135.45,135.42,22.98872583]
[1726153940203,0.2541745,135.45,135.44,22.98872583]
[1726153940405,0.2541745,135.45,135.44,42.98872583]
[1726153941410,0.2541745,135.45,135.36,10.64079812]
[1726153941411,15.9788745,135.45,135.41,1.47645358]
[1726153941612,23.776884,135.44,135.36,22.98872583]
[1726153942595,0.25098,135.43,135.36,22.98872583]
[1726153943094,0.25098,135.43,135.37,20.0]
[1726153951602,22.1178745,135.45,135.38,22.98872583]
[1726153952011,22.1178745,135.45,135.4,22.98872583]
[1726153953220,0.12549,135.44,135.4,22.98872583]
[1726153953517,23.902374,135.44,135.4,22.98872583]
[1726153953824,15.9788745,135.45,135.4,22.98872583]
[1726153954324,15.9788745,135.45,135.41,20.0]
[1726153955524,23.776884,135.44,135.41,20.0]
[1726153958104,23.776884,135.44,135.33,16.1403]
[1726153958303,23.776884,135.42,135.33,16.1403]
[1726153958630,23.776884,135.4,135.35,22.98872583]
[1726153959737,23.776884,135.4,135.36,20.0]
[1726153960930,23.776884,135.4,135.37,22.98872583]
[1726153963932,23.776884,135.4,135.35,22.98872583]
[1726153964446,23.902374,135.41,135.36,20.0]
[1726153964748,23.776884,135.39,135.36,20.0]
[1726153966734,0.25098,135.38,135.36,20.0]
[1726153966929,23.776884,135.37,135.36,20.0]
[1726153967243,24.027864,135.37,135.33,22.98872583]
[1726153967448,23.776884,135.37,135.33,22.98872583]
[1726153968940,23.776884,135.37,135.34,20.0]
[1726153969620,23.776884,135.35,135.32,20.0]
[1726153971553,23.276884,135.35,135.32,20.0]
[1726153972048,23.276884,135.35,135.33,22.98872583]
[1726153972220,23.276884,135.35,135.34,20.0]
[1726153973045,15.7398,135.4,135.34,20.0]
[1726153973340,6.2634,135.42,135.37,22.98872583]
[1726153974560,23.776884,135.41,135.37,22.98872583]
[1726153979230,1.28798568,135.48,135.39,22.98872583]
[1726153979231,6.5341745,135.45,135.39,22.98872583]
[1726153979441,0.2541745,135.45,135.41,22.98872583]
[1726153979749,0.2541745,135.45,135.42,20.0]
[1726153980564,0.2541745,135.49,135.45,20.0]
[1726153980863,0.2541745,135.49,135.48,42.98872583]
[1726153982651,0.2541745,135.49,135.44,39.44022583]
[1726153982652,0.2541745,135.49,135.45,20.0]
[1726153982849,0.2541745,135.49,135.48,20.0]
[1726153984573,0.2541745,135.49,135.48,20.76857467]
[1726153985346,0.2541745,135.49,135.48,21.47599246]
[1726153986869,24.0310585,135.53,135.48,21.47599246]
[1726153987042,0.12549,135.52,135.5,22.98872583]
[1726153987242,24.0310585,135.53,135.5,22.98872583]
[1726153987664,0.2541745,135.53,135.52,42.98872583]
[1726153987963,0.2541745,135.57,135.53,20.0]
[1726153988279,0.2541745,135.57,135.56,42.98872583]
[1726153989482,6.2874,135.64,135.56,42.98872583]
[1726153989663,0.2981032,135.58,135.56,42.98872583]
[1726153990953,0.2717932,135.62,135.57,20.0]
[1726153991159,0.2717932,135.62,135.6,22.98872583]
[1726153992291,0.2717932,135.62,135.61,20.0]
[1726153994584,0.2717932,135.62,135.58,22.98872583]
[1726153994788,0.2717932,135.62,135.59,20.0]
[1726153996480,0.2717932,135.62,135.6,22.98872583]
[1726153998373,0.2717932,135.62,135.61,20.0]
[1726154002388,0.2717932,135.67,135.61,20.0]
[1726154002694,0.2717932,135.67,135.64,22.98872583]
[1726154002875,0.2717932,135.67,135.66,22.98872583]
[1726154003386,0.2717932,135.67,135.66,42.98872583]
[1726154004379,0.2717932,135.71,135.66,42.98872583]
[1726154004799,0.2717932,135.71,135.68,22.98872583]
[1726154005293,0.2717932,135.71,135.7,22.98872583]
[1726154005679,22.0577,135.77,135.7,22.98872583]
[1726154005680,0.2893362,135.74,135.7,22.98872583]
[1726154006903,0.25098,135.73,135.7,22.98872583]
[1726154007310,0.2893362,135.74,135.72,22.98872583]
[1726154009291,0.2893362,135.74,135.71,20.0]
[1726154011108,23.776884,135.73,135.71,20.0]
[1726154013016,23.776884,135.73,135.72,22.98872583]
[1726154014088,0.2893362,135.74,135.72,42.98872583]
[1726154014283,22.3345778,135.81,135.73,20.0]
[1726154014494,22.3345778,135.81,135.75,22.98872583]
[1726154016288,22.3345778,135.81,135.73,42.98872583]
[1726154016713,24.027864,135.8,135.73,42.98872583]
[1726154021216,24.027864,135.8,135.75,22.98872583]
[1726154021410,0.4111778,135.81,135.77,22.98872583]
[1726154022000,0.4111778,135.81,135.74,6.5907]
[1726154022202,0.4111778,135.81,135.75,20.0]
[1726154022908,23.902374,135.8,135.75,20.0]
[1726154023721,0.12549,135.79,135.75,20.0]
[1726154024196,23.902374,135.8,135.75,20.0]
[1726154024392,0.4111778,135.81,135.75,20.0]
[1726154025823,24.027864,135.8,135.75,20.0]
[1726154027234,1.01806092,135.79,135.75,20.0]
[1726154027532,24.027864,135.78,135.7,22.98872583]
[1726154028204,23.776884,135.76,135.7,22.98872583]
[1726154028411,0.25098,135.75,135.7,22.98872583]
[1726154028725,24.027864,135.78,135.72,22.98872583]
[1726154028936,1.01806092,135.77,135.72,22.98872583]
[1726154029141,24.027864,135.76,135.72,22.98872583]
[1726154029352,24.027864,135.78,135.72,22.98872583]
[1726154030129,24.027864,135.78,135.69,16.198]
[1726154030130,23.776884,135.77,135.74,22.98872583]
[1726154030339,0.12549,135.78,135.74,22.98872583]
[1726154031535,23.776884,135.79,135.74,22.98872583]
[1726154031911,0.4111778,135.81,135.74,22.98872583]
[1726154031912,0.4111778,135.81,135.76,22.98872583]
[1726154033240,1.42923872,135.81,135.75,36.0204]
[1726154033449,23.776884,135.8,135.76,22.98872583]
[1726154033618,0.4111778,135.81,135.76,22.98872583]
[1726154033935,1.42923872,135.81,135.76,22.98872583]
[1726154034144,0.4111778,135.81,135.76,22.98872583]
[1726154034636,0.12549,135.8,135.76,22.98872583]
[1726154035137,23.776884,135.79,135.76,22.98872583]
[1726154035337,23.776884,135.79,135.75,36.0204]
[1726154035338,0.12549,135.78,135.75,20.0]
[1726154036838,0.4111778,135.81,135.75,20.0]
[1726154037232,1.42923872,135.81,135.75,20.0]
[1726154038235,24.027864,135.8,135.75,20.0]
[1726154038437,23.776884,135.78,135.75,20.0]
[1726154041450,23.776884,135.78,135.72,16.2694]
[1726154041451,23.776884,135.78,135.73,20.0]
[1726154042036,23.776884,135.78,135.72,16.2694]
[1726154042037,1.01806092,135.77,135.72,16.2694]
[1726154042222,25.04592492,135.76,135.72,16.2694]
[1726154042430,23.902374,135.76,135.7,29.20602583]
[1726154042624,0.12549,135.75,135.7,29.20602583]
[1726154043251,0.12549,135.75,135.69,16.2852]
[1726154043450,23.776884,135.74,135.69,16.2852]
[1726154044235,0.12549,135.73,135.69,16.2852]
[1726154044633,23.776884,135.74,135.7,22.98872583]
[1726154045344,23.776884,135.74,135.7,20.0]
[1726154045527,0.12549,135.73,135.7,20.0]
[1726154047271,0.25098,135.73,135.69,20.0]
[1726154048274,23.776884,135.72,135.66,42.98872583]
[1726154048552,25.04592492,135.71,135.64,22.98872583]
[1726154048931,23.776884,135.69,135.64,22.98872583]
[1726154049147,23.776884,135.69,135.63,3.86904573]
[1726154049366,23.776884,135.67,135.62,38.39632583]
[1726154049774,23.776884,135.67,135.64,22.98872583]
[1726154049960,23.776884,135.67,135.65,20.0]
[1726154051862,23.776884,135.67,135.59,9.51146269]
[1726154052069,23.776884,135.67,135.57,15.081]
[1726154052262,23.776884,135.67,135.6,22.98872583]
[1726154052464,23.776884,135.67,135.6,26.85772287]
[1726154052755,23.776884,135.67,135.6,22.98872583]
[1726154053458,23.776884,135.67,135.61,20.0]
[1726154053859,23.776884,135.65,135.58,20.4111778]
[1726154054059,23.776884,135.63,135.58,47.27004301]
[1726154054278,23.776884,135.63,135.58,43.39990363]
[1726154054680,23.776884,135.63,135.61,20.0]
[1726154057070,23.776884,135.63,135.62,42.98872583]
[1726154057881,23.776884,135.63,135.6,20.0]
[1726154059276,22.34306092,135.72,135.6,20.0]
[1726154059480,24.027864,135.71,135.6,20.0]
[1726154059687,1.01806092,135.7,135.6,20.0]
[1726154059991,23.902374,135.69,135.6,20.0]
[1726154060158,1.01806092,135.68,135.6,20.0]
[1726154060488,23.776884,135.66,135.6,20.0]
[1726154064507,23.776884,135.66,135.65,20.0]
[1726154065784,23.776884,135.66,135.63,20.0]
[1726154066315,23.776884,135.66,135.64,22.98872583]
[1726154066483,23.776884,135.66,135.65,20.0]
[1726154069286,23.776884,135.71,135.65,20.0]
[1726154069589,23.776884,135.71,135.68,20.0]
[1726154069983,16.5747278,135.75,135.68,20.0]
[1726154071313,23.776884,135.74,135.68,20.0]
[1726154071690,0.25098,135.73,135.68,20.0]
[1726154073991,16.5747278,135.75,135.69,22.98872583]
[1726154074185,17.59278872,135.75,135.7,20.0]
[1726154074384,16.5747278,135.75,135.7,20.0]
[1726154075190,0.12549,135.74,135.7,20.0]
[1726154075393,24.027864,135.74,135.7,20.0]
[1726154077082,25.04592492,135.74,135.7,20.0]
[1726154077296,24.027864,135.74,135.7,20.0]
[1726154078110,24.027864,135.74,135.71,14.62349748]
[1726154078489,24.027864,135.74,135.72,20.0]
[1726154078824,0.25098,135.74,135.72,20.0]
[1726154079516,0.25098,135.74,135.71,14.62349748]
[1726154079827,23.776884,135.72,135.71,34.62349748]
[1726154082305,0.2428278,135.75,135.71,34.62349748]
[1726154082493,0.2428278,135.75,135.74,14.62349748]
[1726154083416,0.2428278,135.75,135.74,34.62349748]
[1726154085618,0.2428278,135.75,135.69,20.0]
[1726154085829,0.2428278,135.75,135.74,34.62349748]
[1726154087621,0.4938078,135.75,135.74,34.62349748]
[1726154087804,0.4938078,135.75,135.72,14.62349748]
[1726154088008,24.027864,135.74,135.72,14.62349748]
[1726154088213,23.902374,135.74,135.72,14.62349748]
[1726154088602,23.776884,135.74,135.72,14.62349748]
[1726154089340,0.2428278,135.75,135.73,21.2523045]
[1726154089514,0.2428278,135.75,135.74,15.87580595]
[1726154089831,0.2607652,135.79,135.74,15.87580595]
[1726154089832,0.2607652,135.79,135.75,20.0]
[1726154089998,0.2607652,135.79,135.78,14.62349748]
[1726154091322,0.2607652,135.79,135.78,34.62349748]
[1726154092205,0.2607652,135.79,135.78,22.81738992]
[1726154092400,0.2607652,135.79,135.78,42.81738992]
[1726154094031,0.2607652,135.79,135.78,22.81738992]
[1726154097853,0.2607652,135.84,135.79,20.0]
[1726154098036,0.2607652,135.84,135.81,22.81738992]
[1726154099223,0.12549,135.83,135.81,22.81738992]
[1726154099709,0.25098,135.83,135.79,42.81738992]
[1726154100356,23.776884,135.81,135.72,15.5371]
[1726154100650,21.4548,135.82,135.72,15.5371]
[1726154100651,23.776884,135.79,135.72,15.5371]
[1726154100851,23.776884,135.79,135.69,0.2607652]
[1726154100852,50.0,135.75,135.69,0.2607652]
[1726154101012,31.42524492,135.74,135.69,0.2607652]
[1726154101211,23.776884,135.72,135.69,0.2607652]
[1726154101407,1.14355092,135.71,135.69,0.2607652]
[1726154101634,24.92043492,135.7,135.69,0.2607652]
[1726154101838,24.92043492,135.7,135.65,0.2607652]
[1726154101839,46.253964,135.7,135.65,0.2607652]
[1726154102045,1.14355092,135.69,135.65,0.2607652]
[1726154102242,0.12549,135.68,135.65,0.2607652]
[1726154102416,1.01806092,135.67,135.65,0.2607652]
[1726154102618,0.12549,135.66,135.65,0.2607652]
[1726154102819,0.25098,135.66,135.65,0.2607652]
[1726154103020,0.25098,135.66,135.6,0.2607652]
[1726154103021,22.47938,135.66,135.6,0.2607652]
[1726154103225,1.01806092,135.65,135.6,0.2607652]
[1726154103445,1.26904092,135.64,135.6,0.2607652]
[1726154103641,1.01806092,135.64,135.6,0.2607652]
[1726154103816,0.25098,135.63,135.6,0.2607652]
[1726154104014,23.776884,135.61,135.6,0.2607652]
[1726154104239,24.027864,135.61,135.6,0.2607652]
[1726154104463,23.776884,135.61,135.6,0.2607652]
[1726154104668,23.776884,135.61,135.55,22.81738992]
[1726154104669,23.776884,135.61,135.59,0.3412212]
[1726154106039,23.776884,135.61,135.54,0.3060556]
[1726154106040,7.11246092,135.6,135.54,0.3060556]
[1726154106243,23.776884,135.59,135.54,0.3060556]
[1726154106449,1.26904092,135.58,135.54,0.3060556]
[1726154106629,1.01806092,135.57,135.54,0.3060556]
[1726154106834,0.12549,135.58,135.54,0.3060556]
[1726154107036,1.26904092,135.58,135.54,0.3060556]
[1726154107350,16.75044092,135.58,135.54,0.3060556]
[1726154107556,15.73238,135.58,135.54,0.3060556]
[1726154108245,23.776884,135.57,135.54,0.3060556]
[1726154108450,23.776884,135.55,135.54,0.3060556]
[1726154108643,24.027864,135.55,135.54,0.3060556]
[1726154109181,23.776884,135.55,135.54,0.3060556]
[1726154109975,24.027864,135.55,135.54,0.3060556]
[1726154110351,23.776884,135.55,135.54,0.3060556]
[1726154111779,6.0944,135.6,135.54,0.3060556]
[1726154112272,15.7371,135.62,135.54,0.3060556]
[1726154114358,23.776884,135.61,135.54,0.3060556]
[1726154114565,23.776884,135.59,135.54,0.3060556]
[1726154115782,0.12549,135.58,135.54,0.3060556]
[1726154115964,0.25098,135.58,135.54,0.3060556]
[1726154116480,23.776884,135.59,135.54,0.3060556]
[1726154116683,23.776884,135.59,135.54,20.3060556]
[1726154118358,0.12549,135.58,135.54,20.3060556]
[1726154118556,0.25098,135.58,135.54,20.3060556]
[1726154119058,0.25098,135.58,135.54,0.3060556]
[1726154120887,0.12549,135.58,135.54,0.3060556]
[1726154121081,23.776884,135.59,135.54,0.3060556]
[1726154128197,23.776884,135.59,135.54,23.20582093]
[1726154128489,23.776884,135.59,135.55,20.0]
[1726154129579,15.5937,135.65,135.57,20.0]
[1726154129879,22.2285,135.65,135.57,20.0]
[1726154130061,22.2285,135.65,135.54,39.56122093]